Workbook

Sheet паспорт
A1: ПАТ "УКРТРАНСГАЗ" | G1: ПАСПОРТ ФІЗИКО-ХІМІЧНИХ ПОКАЗНИКІВ ПРИРОДНОГО ГАЗУ № 192
A2: Філія "УМГ "Київтрансгаз" | G2: переданого Мринським ВУПЗГ та прийнятого РВУ "Київавтогаз", ПАТ "Чернігівгаз"
A3: Мринське ВУПЗГ | G3: Маршрут № 192
A4: Вимірювальна хіміко-аналітична лабораторія
A5: Свідоцтво № 98/20 чинно до 05.11.2020 р. | K5: по газопроводу "Київ-Брянськ" | V5: за період з | X5: 2017-05-01 | Z5: по | AA5: 2017-05-31
A7: Число місяця | B7: Компонентний склад, % мол. | N7: Фізико-хімічні показники газу обчислені на основі компонентного складу, 101,325 кПа | X7: Температура точки роси за вологою (Р = 3.92 МПа), °С | Y7: Температура точки роси за вуглеводнями, °С | Z7: Вміст сірководню, г/м3 | AA7: Вміст меркаптанової сірки, г/м3 | AB7: Вміст механічних домішок, г/м3
N8: Густина абсолютна, кг/м3,при 20 °С, | O8: Температура вимірювання/згоряння при 20/25°С
B9: метан, С1 | C9: етан, С2 | D9: пропан, С3 | E9: ізо-бутан, і-С4 | F9: н-бутан, н-С4 | G9: нео-пентан, нео-С5 | H9: ізо-пентан, і-С5 | I9: н-пентан, н-С5 | J9: гексани та вищі, С6+ | K9: кисень, О2 | L9: азот, N2 | M9: діоксид вуглецю, CО2 | O9: Теплота згоряння нижча | R9: Теплота згоряння вища | U9: Число Воббе вище
O10: ккал/м³ | P10: МДж/м³ | Q10: кВт⋅год/м³ | R10: ккал/м³ | S10: МДж/м³ | T10: кВт⋅год/м³ | U10: ккал/м³ | V10: МДж/м³ | W10: кВт⋅год/м³
A11: 1 | O11: =P11/0.0041868 -> 8252.125728 | P11: 34.55 | Q11: =P11/3.6 -> 9.597222222 | R11: =S11/0.0041868 -> 9135.855546 | S11: 38.25 | T11: =S11/3.6 -> 10.625 | AC11: =SUM(B11:M11)+$K$42+$N$42 -> 0
A12: 2 | O12: =P12/0.0041868 -> 8252.125728 | P12: 34.55 | Q12: =P12/3.6 -> 9.597222222 | R12: =S12/0.0041868 -> 9135.855546 | S12: 38.25 | T12: =S12/3.6 -> 10.625 | AC12: 0
A13: 3 | B13: 89.3573 | C13: 5.4905 | D13: 1.1123 | E13: 0.118 | F13: 0.1819 | G13: 0.0113 | H13: 0.0493 | I13: 0.0406 | J13: 0.0293 | K13: 0.0043 | L13: 1.8185 | M13: 1.7867 | N13: 0.7519 | O13: 8266.456482 | P13: 34.61 | Q13: =P13/3.6 -> 9.613888889 | R13: 9150.1863 | S13: 38.31 | T13: =S13/3.6 -> 10.64166667 | U13: =V13/0.0041868 -> 11581.63753 | V13: 48.49 | W13: =V13/3.6 -> 13.46944444 | X13: -9.6 | Y13: -10.7 | AC13: 100 | AD13: =IF(AC13=100,"ОК"," ") -> ОК
A14: 4 | O14: 8266.456482 | P14: 34.61 | Q14: 9.613888889 | R14: 9150.1863 | S14: 38.31 | T14: 10.64166667 | AB14: 0 | AC14: 0 | AD14: =IF(AC14=100,"ОК"," ") -> 
A15: 5 | O15: 8266.456482 | P15: 34.61 | Q15: 9.613888889 | R15: 9150.1863 | S15: 38.31 | T15: 10.64166667 | AC15: 0
A16: 6 | O16: 8266.456482 | P16: 34.61 | Q16: 9.613888889 | R16: 9150.1863 | S16: 38.31 | T16: 10.64166667 | AC16: 0
A17: 7 | O17: =P17/0.0041868 -> 8266.456482 | P17: 34.61 | Q17: =P17/3.6 -> 9.613888889 | R17: =S17/0.0041868 -> 9150.1863 | S17: 38.31 | T17: =S17/3.6 -> 10.64166667 | AC17: 0
A18: 8 | O18: =P18/0.0041868 -> 8266.456482 | P18: 34.61 | Q18: 9.613888889 | R18: =S18/0.0041868 -> 9150.1863 | S18: 38.31 | T18: =S18/3.6 -> 10.64166667 | AC18: 0
A19: 9 | O19: 8266.456482 | P19: 34.61 | Q19: 9.613888889 | R19: 9150.1863 | S19: 38.31 | T19: 10.64166667 | AC19: 0
A20: 10 | B20: 89.3308 | C20: 5.5757 | D20: 1.1108 | E20: 0.1176 | F20: 0.183 | G20: 0.0084 | H20: 0.0515 | I20: 0.0426 | J20: 0.0487 | K20: 0.0053 | L20: 1.7504 | M20: 1.7752 | N20: 0.7526 | O20: 8283.175695 | P20: 34.68 | Q20: =P20/3.6 -> 9.633333333 | R20: 9169.293972 | S20: 38.39 | T20: 10.66388889 | U20: =V20/0.0041868 -> 11600.7452 | V20: 48.57 | W20: =V20/3.6 -> 13.49166667 | X20: -11.1 | Y20: -12.2 | AC20: 100 | AD20: ОК
A21: 11 | O21: 8283.175695 | P21: 34.68 | Q21: =P21/3.6 -> 9.633333333 | R21: 9169.293972 | S21: 38.39 | T21: 10.66388889 | AC21: 0
A22: 12 | O22: 8283.175695 | P22: 34.68 | Q22: 9.633333333 | R22: 9169.293972 | S22: 38.39 | T22: 10.66388889 | AC22: 0
A23: 13 | O23: =P23/0.0041868 -> 8283.175695 | P23: 34.68 | Q23: =P23/3.6 -> 9.633333333 | R23: =S23/0.0041868 -> 9169.293972 | S23: 38.39 | T23: =S23/3.6 -> 10.66388889 | AC23: 0
A24: 14 | O24: =P24/0.0041868 -> 8283.175695 | P24: 34.68 | Q24: 9.633333333 | R24: =S24/0.0041868 -> 9169.293972 | S24: 38.39 | T24: =S24/3.6 -> 10.66388889 | AC24: 0
A25: 15 | O25: 8283.175695 | P25: 34.68 | Q25: 9.633333333 | R25: 9169.293972 | S25: 38.39 | T25: 10.66388889 | AC25: 0
A26: 16 | B26: 89.1635 | C26: 5.6955 | D26: 1.0859 | E26: 0.1171 | F26: 0.1807 | G26: 0.0063 | H26: 0.0508 | I26: 0.0412 | J26: 0.0533 | K26: 0.0048 | L26: 1.7906 | M26: 1.8103 | N26: 0.7536 | O26: 8283.175695 | P26: 34.68 | Q26: 9.688888889 | R26: 9169.293972 | S26: 38.39 | T26: 10.66388889 | U26: =V26/0.0041868 -> 11591.19136 | V26: 48.53 | W26: =V26/3.6 -> 13.48055556 | X26: -14.1 | Y26: -15.1 | AC26: 100 | AD26: ОК
A27: 17 | O27: 8283.175695 | P27: 34.68 | Q27: 9.688888889 | R27: 9169.293972 | S27: 38.39 | T27: 10.66388889 | AC27: 0
A28: 18 | O28: 8283.175695 | P28: 34.68 | Q28: 9.688888889 | R28: 9169.293972 | S28: 38.39 | T28: 10.66388889 | AC28: 0
A29: 19 | O29: 8283.175695 | P29: 34.68 | Q29: 9.688888889 | R29: 9169.293972 | S29: 38.39 | T29: 10.66388889 | AC29: 0
A30: 20 | O30: 8283.175695 | P30: 34.68 | Q30: 9.688888889 | R30: 9169.293972 | S30: 38.39 | T30: 10.66388889 | AC30: 0 | AD30: =IF(AC30=100,"ОК"," ") -> 
A31: 21 | O31: =P31/0.0041868 -> 8283.175695 | P31: 34.68 | Q31: =P31/3.6 -> 9.633333333 | R31: =S31/0.0041868 -> 9169.293972 | S31: 38.39 | T31: =S31/3.6 -> 10.66388889 | AC31: 0
A32: 22 | O32: =P32/0.0041868 -> 8283.175695 | P32: 34.68 | Q32: =P32/3.6 -> 9.633333333 | R32: =S32/0.0041868 -> 9169.293972 | S32: 38.39 | T32: =S32/3.6 -> 10.66388889 | AC32: 0
A33: 23 | O33: 8283.175695 | P33: 34.68 | Q33: 9.633333333 | R33: 9169.293972 | S33: 38.39 | T33: 10.66388889 | AC33: 0 | AD33: =IF(AC33=100,"ОК"," ") -> 
A34: 24 | O34: 8283.175695 | P34: 34.68 | Q34: 9.633333333 | R34: 9169.293972 | S34: 38.39 | T34: 10.66388889 | Z34: 0.0022 | AA34: 0.0018 | AC34: 0
A35: 25 | B35: 89.2519 | C35: 5.6366 | D35: 1.0676 | E35: 0.1166 | F35: 0.1801 | G35: 0.0066 | H35: 0.0503 | I35: 0.0407 | J35: 0.0739 | K35: 0.0099 | L35: 1.7784 | M35: 1.7874 | N35: 0.7533 | O35: 8285.564154 | P35: 34.69 | Q35: 9.636111111 | R35: 9171.68243 | S35: 38.4 | T35: 10.66666667 | U35: =V35/0.0041868 -> 11598.35674 | V35: 48.56 | W35: =V35/3.6 -> 13.48888889 | X35: -9 | Y35: -10.6 | AC35: 100 | AD35: ОК
A36: 26 | O36: =P36/0.0041868 -> 8285.564154 | P36: 34.69 | Q36: =P36/3.6 -> 9.636111111 | R36: =S36/0.0041868 -> 9171.68243 | S36: 38.4 | T36: =S36/3.6 -> 10.66666667 | AC36: 0
A37: 27 | O37: =P37/0.0041868 -> 8285.564154 | P37: 34.69 | Q37: =P37/3.6 -> 9.636111111 | R37: =S37/0.0041868 -> 9171.68243 | S37: 38.4 | T37: =S37/3.6 -> 10.66666667 | AC37: 0
A38: 28 | O38: 8285.564154 | P38: 34.69 | Q38: 9.636111111 | R38: 9171.68243 | S38: 38.4 | T38: 10.66666667 | AC38: 0
A39: 29 | O39: 8285.564154 | P39: 34.69 | Q39: 9.636111111 | R39: 9171.68243 | S39: 38.4 | T39: 10.66666667 | AC39: 0
A40: 30 | O40: =P40/0.0041868 -> 8285.564154 | P40: 34.69 | Q40: =P40/3.6 -> 9.636111111 | R40: =S40/0.0041868 -> 9171.68243 | S40: 38.4 | T40: =S40/3.6 -> 10.66666667 | AC40: 0
A41: 31 | B41: 88.8301 | C41: 5.665 | D41: 1.3483 | E41: 0.1471 | F41: 0.2493 | G41: 0.0065 | H41: 0.0698 | I41: 0.0622 | J41: 0.0849 | K41: 0.0105 | L41: 1.7355 | M41: 1.7908 | N41: 0.7596 | O41: =P41/0.0041868 -> 8357.217923 | P41: 34.99 | Q41: =P41/3.6 -> 9.719444444 | R41: =S41/0.0041868 -> 9248.113117 | S41: 38.72 | T41: =S41/3.6 -> 10.75555556 | U41: =V41/0.0041868 -> 11646.12592 | V41: 48.76 | W41: =V41/3.6 -> 13.54444444 | X41: -8.7 | Y41: -10.2 | AC41: 100 | AD41: ОК
A42: Вміст одоранта при одоризації становить 16 г на 1 000 м³ газу | O42: =SUMPRODUCT(O11:O41,' розрахунок'!F7:F37)/' розрахунок'!F38 -> 8279.611517 | P42: =SUMPRODUCT(P11:P41,' розрахунок'!F7:F37)/' розрахунок'!F38 -> 34.6650775 | Q42: =SUMPRODUCT(Q11:Q41,' розрахунок'!F7:F37)/' розрахунок'!F38 -> 9.637718134 | R42: =SUMPRODUCT(R11:R41,' розрахунок'!F7:F37)/' розрахунок'!F38 -> 9165.195838 | S42: =SUMPRODUCT(S11:S41,' розрахунок'!F7:F37)/' розрахунок'!F38 -> 38.37284194 | T42: =SUMPRODUCT(T11:T41,' розрахунок'!F7:F37)/' розрахунок'!F38 -> 10.65912276
H43: Середньозважене значення теплоти згоряння:
B46: Начальник Мринського ВУПЗГ Гладких В.М. 01.06.2017р.
C47: Підрозділу підприємства, якому підпорядкована лабораторія | O47: прізвище | R47: підпис | V47: дата
B48: Завідувач ВХАЛ Блуд Т.В. 01.06.2017р.
C49: Лабораторія, де здійснювалось вимірювання газу | O49: прізвище | R49: підпис | V49: дата
B50: Начальник служби ГВ та М Шкура Ю. Г. 01.06.2017р.
C51: Підрозділу, відповідального за облік газу за маршрутом | O51: прізвище | R51: підпис | V51: дата

Sheet розрахунок
A2: Додаток до Паспорту фізико-хімічних показників природного газу по маршруту № 192
A4: Число місяця | B4: Теплота згоряння вища, МДж/м3 | C4: Чернігівська область | F4: Загальний обсяг газу, м3
C5: Обсяг газу переданого за добу, м3
C6: ГРС Носівка | D6: ГРС Лихачів | E6: ГРС Мрин | I6: Данные по объекту Ду 150 нитка 1 (осн.) за 5/17.
A7: 1 | B7: 38.25 | C7: 12470.25 | D7: 1137.25 | E7: 390.36 | F7: =SUM(C7:E7) -> 13997.86 | I7: День | J7: V, м3 | K7: dP, кгс/м2 | L7: Pабс, кгс/см2 | M7: T, °C | N7: ABC
A8: 2 | B8: 38.25 | C8: 13388.97 | D8: 1176.47 | E8: 446.27 | F8: =SUM(C8:E8) -> 15011.71 | I8: 1 | J8: 390.36 | K8: 3.78 | L8: 3.4 | M8: 15.02
A9: 3 | B9: 38.31 | C9: 13127.71 | D9: 1062.06 | E9: 395.79 | F9: 14585.56 | I9: 2 | J9: 446.27 | K9: 3.922 | L9: 3.37 | M9: 13.53
A10: 4 | B10: 38.31 | C10: 11798.93 | D10: 994.48 | E10: 979.16 | F10: 13772.57 | I10: 3 | J10: 395.79 | K10: 3.761 | L10: 3.42 | M10: 15.88 | N10: B
A11: 5 | B11: 38.31 | C11: 12416.34 | D11: 962.96 | E11: 898.99 | F11: 14278.29 | I11: 4 | J11: 979.16 | K11: 2.791 | L11: 3.46 | M11: 17.08 | N11: B
A12: 6 | B12: 38.31 | C12: 11824.89 | D12: 979.51 | E12: 1068.91 | F12: 13873.31 | I12: 5 | J12: 898.99 | K12: 123.778 | L12: 3.28 | M12: 16.18 | N12: B
A13: 7 | B13: 38.31 | C13: 10694.24 | D13: 808.14 | E13: 1015.36 | F13: 12517.74 | I13: 6 | J13: 1068.91 | K13: 149.294 | L13: 3.56 | M13: 19.04
A14: 8 | B14: 38.31 | C14: 10541.41 | D14: 909.02 | E14: 1201.76 | F14: 12652.19 | I14: 7 | J14: 1015.36 | K14: 132.059 | L14: 3.61 | M14: 20.8
A15: 9 | B15: 38.31 | C15: 18814.76 | D15: 1331.56 | E15: 1761.33 | F15: 21907.65 | I15: 8 | J15: 1201.76 | K15: 125.269 | L15: 3.32 | M15: 14.86
A16: 10 | B16: 38.39 | C16: 31114.59 | D16: 2122.11 | E16: 2491.83 | F16: 35728.53 | I16: 9 | J16: 1761.33 | K16: 205.874 | L16: 3.19 | M16: 9.2
A17: 11 | B17: 38.39 | C17: 28190.55 | D17: 1976.6 | E17: 2439.81 | F17: 32606.96 | I17: 10 | J17: 2491.83 | K17: 380.793 | L17: 3.17 | M17: 7.06 | N17: B
A18: 12 | B18: 38.39 | C18: 28220.79 | D18: 1776.37 | E18: 2373.2 | F18: 32370.36 | I18: 11 | J18: 2439.81 | K18: 386.731 | L18: 3.31 | M18: 11.46 | N18: B
A19: 13 | B19: 38.39 | C19: 32853.19 | D19: 2352.18 | E19: 2829.3 | F19: 38034.67 | I19: 12 | J19: 2373.2 | K19: 358.954 | L19: 3.31 | M19: 11.56
A20: 14 | B20: 38.39 | C20: 23578.06 | D20: 1524.04 | E20: 2070.7 | F20: 27172.8 | I20: 13 | J20: 2829.3 | K20: 500.985 | L20: 3.29 | M20: 10.22 | N20: B
A21: 15 | B21: 38.39 | C21: 14673.17 | D21: 1001.12 | E21: 1257.21 | F21: 16931.5 | I21: 14 | J21: 2070.7 | K21: 304.796 | L21: 3.36 | M21: 13.48
A22: 16 | B22: 38.39 | C22: 14082.05 | D22: 989.91 | E22: 1280.5 | F22: 16352.46 | I22: 15 | J22: 1257.21 | K22: 183.868 | L22: 3.47 | M22: 16.24
A23: 17 | B23: 38.39 | C23: 14725.41 | D23: 1107.46 | E23: 1418.97 | F23: 17251.84 | I23: 16 | J23: 1280.5 | K23: 169.797 | L23: 3.4 | M23: 15.98 | N23: B
A24: 18 | B24: 38.39 | C24: 14149.12 | D24: 1067.34 | E24: 1276.74 | F24: 16493.2 | I24: 17 | J24: 1418.97 | K24: 151.934 | L24: 3.34 | M24: 13.95 | N24: B
A25: 19 | B25: 38.39 | C25: 12493.76 | D25: 1010.98 | E25: 1147.99 | F25: 14652.73 | I25: 18 | J25: 1276.74 | K25: 161.931 | L25: 3.43 | M25: 15.77
A26: 20 | B26: 38.39 | C26: 12284.51 | D26: 968.98 | E26: 1186.45 | F26: 14439.94 | I26: 19 | J26: 1147.99 | K26: 164.922 | L26: 3.49 | M26: 18.08 | N26: B
A27: 21 | B27: 38.39 | C27: 12203.76 | D27: 978.24 | E27: 1242.17 | F27: 14424.17 | I27: 20 | J27: 1186.45 | K27: 132.237 | L27: 3.48 | M27: 16.87
A28: 22 | B28: 38.39 | C28: 10437.5 | D28: 735.04 | E28: 947.61 | F28: 12120.15 | I28: 21 | J28: 1242.17 | K28: 140.779 | L28: 3.45 | M28: 17.18
A29: 23 | B29: 38.39 | C29: 9432.53 | D29: 596.94 | E29: 911.79 | F29: 10941.26 | I29: 22 | J29: 947.61 | K29: 124.298 | L29: 3.58 | M29: 16.85 | N29: B
A30: 24 | B30: 38.39 | C30: 8908.83 | D30: 640.32 | E30: 925.89 | F30: 10475.04 | I30: 23 | J30: 911.79 | K30: 128.673 | L30: 3.6 | M30: 20.37 | N30: B
A31: 25 | B31: 38.4 | C31: 8219.09 | D31: 654.49 | E31: 932.16 | F31: 9805.74 | I31: 24 | J31: 925.89 | K31: 104.053 | L31: 3.51 | M31: 18.37 | N31: B
A32: 26 | B32: 38.4 | C32: 10375.92 | D32: 865.95 | E32: 1123.3 | F32: 12365.17 | I32: 25 | J32: 932.16 | K32: 120.345 | L32: 3.55 | M32: 19.77 | N32: B
A33: 27 | B33: 38.4 | C33: 10273.42 | D33: 798.74 | E33: 1040.26 | F33: 12112.42 | I33: 26 | J33: 1123.3 | K33: 104.702 | L33: 3.4 | M33: 14.62 | N33: B
A34: 28 | B34: 38.4 | C34: 9452.45 | D34: 712.81 | E34: 1004.9 | F34: 11170.16 | I34: 27 | J34: 1040.26 | K34: 122.229 | L34: 3.48 | M34: 17.63
A35: 29 | B35: 38.4 | C35: 8536.31 | D35: 560.44 | E35: 812.1 | F35: 9908.85 | I35: 28 | J35: 1004.9 | K35: 131.12 | L35: 3.61 | M35: 19.63
A36: 30 | B36: 38.4 | C36: 7812.44 | D36: 542.58 | E36: 809.27 | F36: 9164.29 | I36: 29 | J36: 812.1 | K36: 115.84 | L36: 3.74 | M36: 24.05 | N36: B
A37: 31 | B37: 38.72 | C37: 7341.54 | D37: 521.23 | E37: 784.23 | F37: 8647 | I37: 30 | J37: 809.27 | K37: 101.842 | L37: 3.64 | M37: 23.36 | N37: B
A38: Загальний обсяг газу, м3 | C38: =SUM(C7:C37) -> 444436.49 | D38: =SUM(D7:D37) -> 32865.32 | E38: 38464.31 | F38: =SUM(F7:F37) -> 515766.12 | I38: 31 | J38: 784.23 | K38: 89.024 | L38: 3.61 | M38: 25.02 | N38: B
A39: Енергія, МДж | C39: =SUMPRODUCT(B7:B37,C7:C37) -> 17054128.5 | D39: =SUMPRODUCT(B7:B37,D7:D37) -> 1261025.252 | E39: =SUMPRODUCT(B7:B37,E7:E37) -> 1476258.044 | F39: =SUMPRODUCT(B7:B37,F7:F37) -> 19791411.8 | I39: Итого | J39: 37764.31 | K39: 182.079 | L39: 3.45 | M39: 16.58 | N39: B
A40: Теплота згоряння (середньозважене значення за місяць), МДж/м³ | C40: =C39/C38 -> 38.3724759 | D40: =D39/D38 -> 38.3694804 | E40: =E39/E38 -> 38.3799435 | F40: =F39/F38 -> 38.37284194
A41: Теплота згоряння (середньозважене значення за місяць), ккал/м³ | C41: =C40*238.8459 -> 9165.108542 | D41: =D40*238.8459 -> 9164.393079 | E41: 9166.892147 | F41: 9165.195968
A42: Теплота згоряння (середньозважене значення за місяць), кВт*год./м³ | C42: =C40/3.6 -> 10.65902108 | D42: =D40/3.6 -> 10.658189 | E42: 10.66109542 | F42: 10.65912276

Sheet додаток
A2: Додаток до Паспорту фізико-хімічних показників природного газу № 192
A4: Область | B4: ГРС, прямий споживач | C4: Cередньозважене значення вищої теплоти згоряння
C5: МДж/м³ | D5: ккал/м³ | E5: кВт*год./м³
A6: Чернігівська область | B6: ГРС Носівка | C6: =' розрахунок'!C40 -> 38.3724759 | D6: =' розрахунок'!C41 -> 9165.108542 | E6: =' розрахунок'!C42 -> 10.65902108
B7: ГРС Лихачів | C7: =' розрахунок'!D40 -> 38.3694804 | D7: =' розрахунок'!D41 -> 9164.393079 | E7: =' розрахунок'!D42 -> 10.658189
B8: ГРС Мрин | C8: =' розрахунок'!E40 -> 38.3799435 | D8: =' розрахунок'!E41 -> 9166.892147 | E8: =' розрахунок'!E42 -> 10.66109542
A9: Середньозважене значення вищої теплоти згоряння по маршруту № 192 | C9: =' розрахунок'!F40 -> 38.37284194 | D9: =' розрахунок'!F41 -> 9165.195968 | E9: =' розрахунок'!F42 -> 10.65912276
A13: Начальник Мринського ВУПЗГ Гладких В.М. | F13: 01.06.2017р.
A14: Підрозділу підприємства, якому підпорядкована лабораторія | D14: прізвище | E14: підпис | F14: дата
A15: Завідувач ВХАЛ Блуд Т.В. | F15: 01.06.2017р.
A16: Лабораторія, де здійснювалось вимірювання газу | D16: прізвище | E16: підпис | F16: дата
A17: Начальник служби ГВ та М Шкура Ю.Г. | F17: 01.06.2017р.
A18: Підрозділу, відповідального за облік газу за маршрутом | D18: прізвище | E18: підпис | F18: дата

Sheet variablesList (hidden)
A1: 3 | B1: x:\gaysin | C1: 10, 11, 24, 25, 127, 128, 132, 180, 207, 215 | D1: x:\
B2: x:\Illinci
B3: x:\Talne
